Cogmind - Beta 13 @@@ ROGUE MODE // 2024.08.02 @ 19:56:52 Player: Amberulez Result: Self-destructed Performance ------------- Evolutions (3) 1500 Regions Visited (6) 1200 Robots Destroyed (36) 180 Value Destroyed (1160) 1160 Prototype IDs (29) 580 Alien Tech Used (0) 0 Bonus (391) 391 TOTAL SCORE: 5011 Bonus ------- Follower Combat Kills 91 Aligned with FarCom 300 Cogmind --------- Core Integrity 700/700 Matter 276/300 Energy 250/250 System Corruption 0% Temperature Cool (0) Movement Treading (166) Location -7/Factory Parts ------- > --- POWER (1) -------- Ion Engine > --- PROPULSION (4) --- Light Treads Armored Treads Armored Treads > --- UTILITY (5) ------ Large Storage Unit Hardened Heavy Armor Plating > --- WEAPON (3) ------- Gauss Rifle AWS/Gauss > --- INVENTORY (15) --- Ion Engine Light Ion Engine Light Treads Armored Treads Humpback High-capacity Matter Pod (200) Advanced Visual Processing Unit Hardened Heavy Armor Plating Medium Laser Pulse Rifle Advanced EMP Blaster Rocket Launcher Peak State ------------ > --- POWER ------------ Light Nuclear Core > --- PROPULSION ------- Light Treads Armored Treads Armored Treads > --- UTILITY ---------- Large Storage Unit Hardened Heavy Armor Plating > --- WEAPON ----------- Gauss Rifle AWS/Gauss > --- INVENTORY -------- Ion Engine Ion Engine Light Ion Engine Light Treads Armored Treads Humpback High-capacity Matter Pod Advanced Visual Processing Unit Hardened Heavy Armor Plating Medium Laser Pulse Rifle Advanced EMP Blaster Rocket Launcher [Rating: 42] Favorites ----------- Power Ion Engine Engine Ion Engine Power Core Light Nuclear Core Propulsion Light Treads Treads Light Treads Utility Large Storage Unit Storage Large Storage Unit Processor 0b10 Alert Chip Protection Hardened Heavy Armor Plating Weapon AWS/Gauss Energy Gun Medium Laser Ballistic Gun AWS/Gauss Launcher Advanced EMP Blaster Build | -11 -10 -10 -10 -9 -8 -7 ------- Run | Yrd Mat Min Exi Min Mat Fac Slots Evolved 6 | . . . . . 4 2 Power . | . . . . . . . Propulsion 2 | . . . . . 2 . Utility 3 | . . . . . 1 2 Weapon 1 | . . . . . 1 . Parts Attached 24 | 6 3 . 3 . 11 1 Power 4 | 1 1 . . . 1 1 Engine 3 | 1 1 . . . . 1 Core 1 | . . . . . 1 . Reactor . | . . . . . . . Propulsion 5 | 2 . . . . 3 . Treads 5 | 2 . . . . 3 . Leg . | . . . . . . . Wheel . | . . . . . . . Hover . | . . . . . . . Flight . | . . . . . . . Utility 8 | 1 2 . 2 . 3 . Device . | . . . . . . . Storage 3 | 1 1 . 1 . . . Processor 2 | . 1 . 1 . . . Hackware . | . . . . . . . Protection 3 | . . . . . 3 . Artifact . | . . . . . . . Weapon 7 | 2 . . 1 . 4 . Energy Gun 3 | 1 . . . . 2 . Energy Cannon . | . . . . . . . Ballistic Gun 3 | 1 . . 1 . 1 . Ballistic Cannon . | . . . . . . . Launcher 1 | . . . . . 1 . Special Weapon . | . . . . . . . Impact Weapon . | . . . . . . . Slashing Weapon . | . . . . . . . Piercing Weapon . | . . . . . . . Special Melee Weapon . | . . . . . . . Unidentified Prototypes 1 | . . . . . 1 . Corrupted Parts 3 | . . . . . 3 . System Corruption 11 | . . . . . 11 . Parts Lost 3 | . . . . . 2 1 Power 1 | . . . . . . 1 Propulsion . | . . . . . . . Utility 1 | . . . . . 1 . Weapon 1 | . . . . . 1 . Highest Loss Streak 2 | . . . . . 2 1 To Critical Strikes . | . . . . . . . Average Slot Usage (%) 76 | . 83 85 85 85 69 61 Engine 9 | . 14 14 14 14 4 1 Core 2 | . . . . . 4 5 Treads 24 | . 28 28 28 28 19 23 Storage 7 | . 6 . 1 14 9 7 Processor 9 | . 5 14 20 14 6 . Protection 3 | . . . . . 8 7 Energy Gun 4 | . 14 14 6 . 3 . Ballistic Gun 13 | . 14 14 14 14 11 15 Naked Turns . | . . . . . . . Heaviest Build 59 | 11 13 8 35 35 59 59 Greatest Support 60 | 40 40 40 40 40 60 60 Greatest Overweight (x) 2 | 2 . . . . 2 . Average Overweight (x) . | . . . . . . . Largest Inventory Capacity 25 | 8 25 5 15 15 15 15 Average Capacity 11 | 7 6 5 6 15 15 15 Most Carried 15 | 2 5 5 5 7 15 15 Average Carried 8 | . 4 4 4 6 11 14 Final Capacity 15 | 8 5 5 15 15 15 15 Final Carried 15 | 2 5 4 5 7 15 14 Class Distribution -------------------- 57% | Mutant 20% | Skirmisher 14% | Scavenger-Mutant 7% | Scavenger-Skirmisher Dominant Class ---------------- Mutant | -10/Materials Mutant | -10/Mines Mutant | -10/Exiles Mutant | -9/Mines Skirmisher | -8/Materials Scavenger-Mutant | -7/Factory Resources | -11 -10 -10 -10 -9 -8 -7 ----------- Run | Yrd Mat Min Exi Min Mat Fac Matter Collected 714 | 251 48 . . 28 334 53 Remotely . | . . . . . . . Salvage Created 1376 | . 61 . . . 1237 78 Parts 88 | . 4 . . 1 79 4 Haulers Intercepted 3 | . . . . . 3 . Recyclers Shooed . | . . . . . . . Parts Field Recycled . | . . . . . . . Retrieved Matter . | . . . . . . . Parts Self-Destructed . | . . . . . . . Prevented . | . . . . . . . Kills | -11 -10 -10 -10 -9 -8 -7 ------- Run | Yrd Mat Min Exi Min Mat Fac Combat Hostiles Destroyed 22 | . 1 . . . 18 3 Guns 19 | . 1 . . . 15 3 AOE 3 | . . . . . 3 . Classes Destroyed 9 | . 2 . . 1 5 1 Worker 3 | . . . . 1 2 . Builder 5 | . . . . . 5 . Hauler 3 | . . . . . 3 . Operator 1 | . 1 . . . . . Watcher 2 | . . . . . 2 . Swarmer 3 | . . . . . . 3 Grunt 15 | . 1 . . . 14 . Specialist 3 | . . . . . 3 . Heavy 1 | . . . . . 1 . Best Kill Streak 13 | . 1 . . 1 13 2 Combat Bots Only 9 | . 1 . . . 9 2 Max Kills in Single Turn 3 | . 1 . . 1 3 1 Gunslinging . | . . . . . . . Exploded 1 | . . . . . 1 . Melee . | . . . . . . . Uniques/NPCs Destroyed . | . . . . . . . Combat | -11 -10 -10 -10 -9 -8 -7 -------- Run | Yrd Mat Min Exi Min Mat Fac Hostile Shots Fired 71 | . 9 . . . 32 30 Missed 24 | . 2 . . . 9 13 Damage Taken 1088 | . 71 . . . 758 259 Core 145 | . 9 . . . 136 . Absorbed by Shields . | . . . . . . . Core Remaining (%) 90 | 100 . . . 96 75 . Volleys Fired 56 | . 13 . . . 27 16 Largest 2 | . 2 . . . 1 1 Hottest 70 | . 70 . . . 50 28 Shots Fired 130 | . 23 . . . 91 16 Gun 123 | . 23 . . . 84 16 Cannon . | . . . . . . . Launcher 7 | . . . . . 7 . Special . | . . . . . . . Kinetic 98 | . 13 . . . 69 16 Thermal 25 | . 10 . . . 15 . Explosive . | . . . . . . . Electromagnetic 7 | . . . . . 7 . Robot Hit Streak 25 | . 4 . . . 25 6 Robot Miss Streak 4 | . 4 . . . 2 2 Penetration Max . | . . . . . . . Secondary Targets . | . . . . . . . Autonomous 65 | . . . . . 65 . Shots Hit Robots 94 | . 11 . . . 72 11 Core Hits 56 | . 5 . . 1 46 4 Critical Kills . | . . . . . . . Critical Parts Destroyed 1 | . . . . . 1 . Critical Strikes 2 | . 1 . . . 1 . Burn 1 | . 1 . . . . . Destroy 1 | . . . . . 1 . Melee Attacks . | . . . . . . . Impact . | . . . . . . . Slashing . | . . . . . . . Piercing . | . . . . . . . Sneak Attacks . | . . . . . . . Combat Hostiles . | . . . . . . . Follow-up Attacks . | . . . . . . . Damage Inflicted 3017 | . 121 . . 27 2635 234 Guns 2135 | . 121 . . . 1785 229 Cannons . | . . . . . . . Explosions 816 | . . . . . 816 . Melee . | . . . . . . . Ramming 66 | . . . . 27 34 5 Kinetic 1935 | . 34 . . . 1672 229 Thermal 540 | . 87 . . . 453 . Explosive . | . . . . . . . Electromagnetic 476 | . . . . . 476 . Impact . | . . . . . . . Slashing . | . . . . . . . Piercing . | . . . . . . . Highest Corruption 12 | . . . . . 12 . Average Corruption 6 | . . . . . 6 . Corruption Purged . | . . . . . . . Corruption Blocked . | . . . . . . . Effects 13 | . . . . . 13 . Message Errors 4 | . . . . . 4 . Matter Fused 2 | . . . . . 2 . Heat Flow Errors 3 | . . . . . 3 . Energy Discharges 2 | . . . . . 2 . Data Loss (minor) 2 | . . . . . 2 . Overload Shots . | . . . . . . . Overflow Damage 91 | . . . . . 91 . Projectiles . | . . . . . . . Explosions 91 | . . . . . 91 . Melee . | . . . . . . . Knockbacks 2 | . . . . 2 . . Impact 2 | . . . . 2 . . Kinetic . | . . . . . . . Secondary . | . . . . . . . Self-Inflicted Damage 242 | . . . . . 242 . Shots 9 | . . . . . 9 . Rammed 10 | . . . . 5 4 1 Targets Rammed 12 | . . . . 6 5 1 Kicked . | . . . . . . . Crushed 2 | . . . . 1 1 . Highest Temperature 326 | . 130 . . . 326 . Average Temperature 79 | . 48 . . . 88 . Received Heat Transfer 210 | . 30 . . . 180 . Siege Activations . | . . . . . . . Robots Corrupted . | . . . . . . . Combat Hostiles . | . . . . . . . Parts Fried 3 | . . . . . 3 . Impact Corruptions . | . . . . . . . Robots Melted . | . . . . . . . Combat Hostiles . | . . . . . . . Parts Melted . | . . . . . . . Heat Transferred 1016 | . 333 . . . 683 . Parts Sabotaged . | . . . . . . . Parts Stolen . | . . . . . . . Parts Stripped . | . . . . . . . Power Chain Reactions 5 | . . . . . 5 . Alert | -11 -10 -10 -10 -9 -8 -7 ------- Run | Yrd Mat Min Exi Min Mat Fac Peak Influence 299 | . 88 34 . 4 299 212 Initial 98 | . . 34 . . . 98 Average 60 | . 38 34 . . 90 124 Maximum Alert Level 1 | . . . . . 1 1 Low Security (%) 90 | 100 100 100 . 100 84 76 Level 1 9 | . . . . . 15 23 Level 2 . | . . . . . . . Level 3 . | . . . . . . . Level 4 . | . . . . . . . Level 5 . | . . . . . . . High Security . | . . . . . . . Max Security . | . . . . . . . Squads Dispatched 12 | . 1 1 . . 8 2 Investigation 3 | . . . . . 1 2 Extermination . | . . . . . . . Reinforcement 8 | . 1 . . . 7 . Assault 1 | . . 1 . . . . Garrison . | . . . . . . . Intercept . | . . . . . . . Searches Triggered . | . . . . . . . Construction Impeded 3 | . . . . . 3 . Haulers Reinforced . | . . . . . . . Active Scanning Responses . | . . . . . . . Cargo Convoy Interrupts . | . . . . . . . Stealth | -11 -10 -10 -10 -9 -8 -7 --------- Run | Yrd Mat Min Exi Min Mat Fac Distress Signals 1 | . 1 . . . . . Communications Jammed . | . . . . . . . Distress Signals . | . . . . . . . Times Spotted 30 | . 6 . . . 21 3 Peak Tracking Total 5 | . 4 . . . 5 3 Tactical Retreats 1 | . . . . . . 1 Traps | -11 -10 -10 -10 -9 -8 -7 ------- Run | Yrd Mat Min Exi Min Mat Fac Traps Triggered 2 | . . . . . 1 1 Indirectly . | . . . . . . . Trap Hack Attempts . | . . . . . . . Triggered . | . . . . . . . Disarmed . | . . . . . . . Reprogrammed . | . . . . . . . Reused . | . . . . . . . Traps Extracted . | . . . . . . . Installed . | . . . . . . . Triggered . | . . . . . . . Machines | -11 -10 -10 -10 -9 -8 -7 ---------- Run | Yrd Mat Min Exi Min Mat Fac Machines Disabled 4 | . . . . . 4 . Max in Single Turn 1 | . . . . . 1 . Machines Repaired . | . . . . . . . Machines Dismantled . | . . . . . . . Machines Sabotaged . | . . . . . . . Overloaded Fab Kills . | . . . . . . . Hacking | -11 -10 -10 -10 -9 -8 -7 --------- Run | Yrd Mat Min Exi Min Mat Fac Machines Accessed 6 | . 1 . 1 . 2 2 Terminals 3 | . 1 . . . 1 1 Fabricators 1 | . . . . . . 1 Repair Stations . | . . . . . . . Recycling Units 1 | . . . . . 1 . Scanalyzers . | . . . . . . . Garrison Access . | . . . . . . . Total Hacks 10 | . 3 . 1 . 2 4 Successful 7 | . 2 . 1 . 2 2 Failed 3 | . 1 . . . . 2 Catastrophic . | . . . . . . . Database Lockouts . | . . . . . . . Manual 3 | . 2 . 1 . . . Terminals 7 | . 3 . . . 1 3 Fabricators 1 | . . . . . . 1 Repair Stations . | . . . . . . . Recycling Units 1 | . . . . . 1 . Scanalyzers . | . . . . . . . Garrison Access . | . . . . . . . Terminal Hacks 5 | . 2 . 1 . 1 1 Prototype ID Bank 2 | . 1 . . . . 1 Branch Access Points 1 | . 1 . . . . . Locate Traps 1 | . . . . . 1 . Derelict Proto ID Bank 1 | . . . 1 . . . Fabricator Hacks 1 | . . . . . . 1 Build 1 | . . . . . . 1 Repair Station Hacks . | . . . . . . . Recycling Unit Hacks 1 | . . . . . 1 . Report Inventory 1 | . . . . . 1 . Scanalyzer . | . . . . . . . Garrison Access Hacks . | . . . . . . . Unauthorized Hacks . | . . . . . . . Terminals . | . . . . . . . Fabricators . | . . . . . . . Repair Stations . | . . . . . . . Recycling Units . | . . . . . . . Scanalyzers . | . . . . . . . Garrison Access . | . . . . . . . Data Cores Recovered . | . . . . . . . Used . | . . . . . . . Hacking Detections 4 | . 1 . . . 1 2 Full Trace Events 2 | . 1 . . . . 1 Feedback Events . | . . . . . . . Feedback Blocked . | . . . . . . . Robot Schematics Acquired . | . . . . . . . Robots Built 1 | . . . . . . 1 Authchips . | . . . . . . . Time 81 | . . . . . . 81 Total Robot Build Rating 1 | . . . . . . 1 Part Schematics Acquired . | . . . . . . . Parts Built . | . . . . . . . Authchips . | . . . . . . . Time . | . . . . . . . Total Part Build Rating . | . . . . . . . Parts Repaired . | . . . . . . . Time . | . . . . . . . Parts Recycled . | . . . . . . . Recycled Matter . | . . . . . . . Retrieved Matter . | . . . . . . . Retrieved Components . | . . . . . . . Parts Scanalyzed . | . . . . . . . Part Schematics Acquired . | . . . . . . . Parts Damaged . | . . . . . . . Bothacking | -11 -10 -10 -10 -9 -8 -7 ------------ Run | Yrd Mat Min Exi Min Mat Fac Used RIF Installer . | . . . . . . . Robots Hacked . | . . . . . . . Non-combat . | . . . . . . . Combat . | . . . . . . . Robot Hacks Applied . | . . . . . . . Relay Couplers Released . | . . . . . . . Fabnet Peak Effective % . | . . . . . . . Robots Rewired . | . . . . . . . Allies Hacked . | . . . . . . . Hacks Repelled . | . . . . . . . Allies | -11 -10 -10 -10 -9 -8 -7 -------- Run | Yrd Mat Min Exi Min Mat Fac Total Allies 5 | . . 1 . 3 . 1 Largest Group 4 | . . 1 1 4 4 1 Highest-Rated Group 71 | . . 31 31 71 71 6 Highest-Rated Ally 31 | . . 31 31 31 31 6 Total Orders . | . . . . . . . Ally Attacks 30 | . . . . . 30 . Total Damage 338 | . . . . . 338 . Kills 3 | . . . . . 3 . Allies Corrupted . | . . . . . . . Allies Melted . | . . . . . . . Intel | -11 -10 -10 -10 -9 -8 -7 ------- Run | Yrd Mat Min Exi Min Mat Fac Robot Analysis Total . | . . . . . . . Derelict Logs Recovered 1 | . . . . 1 . . Drone Launches . | . . . . . . . Drone Recoveries . | . . . . . . . Exploration | -11 -10 -10 -10 -9 -8 -7 ------------- Run | Yrd Mat Min Exi Min Mat Fac Turns Passed 3125 | 85 306 196 554 633 910 441 Spaces Moved 1626 | 52 167 122 339 387 372 187 Core 10 | 10 . . . . . . Treads 1616 | 42 167 122 339 387 372 187 Legs . | . . . . . . . Wheels . | . . . . . . . Hover . | . . . . . . . Flight . | . . . . . . . Fastest Speed 50 | 50 160 160 160 160 160 166 Average Speed 172 | 142 160 160 160 160 213 166 Slowest Speed 330 | 160 160 160 160 160 330 166 Overloaded Moves . | . . . . . . . Propulsion Burnouts . | . . . . . . . Robots Hopped . | . . . . . . . Cave-ins Triggered . | . . . . . . . Exploration Rate (%) 29 | 4 28 13 61 68 30 5 Regions Visited 6 Branch Regions 3 Pre-discovered Areas 2 | . . 1 . 1 . . Known Exits Taken 2 | . 1 1 . . . . Unknown Exits Taken 4 | 1 . . 1 1 1 . Scrap Searched 1 | . . . . 1 . . Spaces Dug . | . . . . . . . Terrain Destroyed 88 | . . . . . 88 . Melee . | . . . . . . . Projectile 28 | . . . . . 28 . AOE 60 | . . . . . 60 . Terrain Rammed . | . . . . . . . Walls Destroyed . | . . . . . . . Machines Disabled . | . . . . . . . Actions | -11 -10 -10 -10 -9 -8 -7 --------- Run | Yrd Mat Min Exi Min Mat Fac Total 1872 | 60 185 124 354 397 452 300 Wait 119 | . . . . . 24 95 Move 1620 | 51 166 121 338 386 371 187 Hop . | . . . . . . . Pick Up 22 | 3 1 1 5 2 10 . Fast Attach 15 | 5 2 . 2 . 6 . Attach 7 | 1 . . 1 . 4 1 Detach 6 | . 1 . 2 . 3 . Swap 2 | . 1 . . . 1 . Drop 10 | . 1 2 6 . 1 . Fire 56 | . 13 . . . 27 16 Melee . | . . . . . . . Ram . | . . . . . . . Kick . | . . . . . . . Crush 12 | . . . . 6 5 1 Escape Stasis . | . . . . . . . Rewire 3 | . . . . 3 . . Trap . | . . . . . . . Miscellaneous . | . . . . . . . Route ------- -11/Scrapyard -10/Materials (discovered 2 exits: *Min x2) -10/Mines -10/Exiles -9/Mines -8/Materials -7/Factory History --------- Turn | Location | Event 8 | -11/Scrapyard | Discovered new exit (range 15) 86 | -11/Scrapyard | Entered Materials 108 | -10/Materials | Identified exit to Mines 304 | -10/Materials | Build established: Mutant 392 | -10/Materials | Entered Mines 393 | -10/Mines | Learned location of Storage (-8) 418 | -10/Mines | Deemed a non-threat by the Exiles lab entrance 420 | -10/Mines | Discovered new exit (range 5) 486 | -10/Mines | Met a Derelict testing a Signal Generator 500 | -10/Mines | Found Signal Generator 585 | -10/Mines | Identified exit to Exiles 588 | -10/Mines | Entered Exiles 588 | -10/Exiles | Accompanied by 1 ally 641 | -10/Exiles | Met 8R-AWN 678 | -10/Exiles | Met EX-HEX 744 | -10/Exiles | Met EX-BIN 771 | -10/Exiles | Aligned with FarCom system 772 | -10/Exiles | Given EX-Vault access code 819 | -10/Exiles | Opened EX-Vault 838 | -10/Exiles | Found 0b10 Alert Chip 842 | -10/Exiles | Found AWS/Gauss 863 | -10/Exiles | Found Supersonic Drone Bay 922 | -10/Exiles | Warned to stay clear of 0b10 Research branches 976 | -10/Exiles | Met EX-DEC 1117 | -10/Exiles | Discovered new exit (range 14) 1142 | -10/Exiles | Stole two prototypes: AWS/Gauss, 0b10 Alert Chip 1142 | -10/Exiles | Entered Mines 1142 | -9/Mines | Accompanied by 1 ally 1305 | -9/Mines | Discovered new exit (range 10) 1455 | -9/Mines | Assisted by bots powering up and referring to "LRC-V3" 1569 | -9/Mines | Received a Rocket Launcher from a helpful Derelict 1775 | -9/Mines | Entered Materials 1775 | -8/Materials | Accompanied by 4 allies 1775 | -8/Materials | Evolved 4 slots: Propulsion x2, Utility x1, Weapon x1 2075 | -8/Materials | Build established: Skirmisher 2089 | -8/Materials | Lost 3 allies 2444 | -8/Materials | System corruption reached 10% 2470 | -8/Materials | Destroyed 9 combat bots 2662 | -8/Materials | Discovered new exit (range 10) 2685 | -8/Materials | Entered Factory 2685 | -7/Factory | Evolved 2 slots: Utility x2 2687 | -7/Factory | FarCom data flow suspended 2859 | -7/Factory | Fabricated K-01 Serf (x1) 2968 | -7/Factory | Build established: Scavenger-Mutant 3126 | -7/Factory | Self-destructed Last Messages --------------- 02919_ ALERT: Suspicious activity at Terminal F019. Dispatching Investigation squad. 02947_ ALERT: All DSF locations entering lockdown mode. 02949_ Slug penetrates S-27 Virus. 02949_ S-27 Virus destroyed. 02951_ Slug penetrates Wall. 02966_ Slug penetrates S-27 Virus. 02966_ S-27 Virus destroyed. 02984_ Slug penetrates S-27 Virus. 03004_ Destroyed Lgt. Nuclear Core. 03006_ Lgt. Nuclear Core destroyed. 03006_ S-27 Virus destroyed. 03006_ R-06 Scavenger collects VTOL Module. 03010_ R-06 Scavenger collects Lgt. Nuclear Core. 03011_ Slammed into R-06 Scavenger. 03013_ Acquired 26 matter. 03039_ Acquired 27 matter. 03111_ Triggered Alarm Trap. 03111_ An alarm sounds. 03111_ ALERT: Alarm triggered, dispatching investigation squad. Map ----- +----------------------------------------------------+ | ?????????????????????????????????????????????????? | | ?????????????????????????????????????????????????? | | ?????????????????????????????????????????????????? | | ?????????????????????????????????????????????????? | | ?????????????????????????????????????????????????? | | ?????????????????????????????????????????????????? | | ?????????????????????????????????????????????????? | | ?????????????????????????????????????????????????? | | ?????????????????????????????????????????????????? | | ?????????????????????????????????????????????????? | | ??????????????????? ???????????????????????????? | | ????????????????? ???????????????????????????? | | ????????????????# ???????????????????????????? | | ????????????????# ???????????????????????????? | | ??????????+###### ???????????????????????????? | | ?????????? #??????????????????????????? | | ?????????# #??????????????????????????? | | ?????????+ #??????????????????????????? | | ?????????? +??????????????????????????? | | ???????????? #??????????????????????????? | | ?????????????# #??????????????????????????? | | ?????????????# ##############?????????????? | | ?????????????? # ! [ ??????????????? | | ????????????????# # ???????????????? | | ????????????????# # """""?????????????????? | | ????????????????# + @ """""?????????????????? | | ????????????????# # """""?????????????????? | | ????????????????# # """""?????????????????? | | ??????########### ####+#####?????????????????? | | ??????# # #???????????????????? | | ??????# # #???????????????????? | | ??????#!! # #???????????????????? | | ??????#!! """ + #???????????????????? | | ??????#! """ # #???????????????????? | | ??????? """ # ##########?????????????????? | | ??????? # # #?????????????????? | | ???????? # # #?????????????????? | | ????????######### # #?????????????????? | | ????????????????# # #?????????????????? | | ????????????????# + #?????????????????? | | ????????????????# # #?????????????????? | | ????????????????# # #?????????????????? | | ??????????????### # #?????????????????? | | ??????????????# # #?????????????????? | | ??????????????# ##########?????????????????? | | ??????????????# #########??????????????????? | | ??????????????# # ???????????????????? | | ??????????????# # """ ""???????????????????? | | ???############## # """ ""???????????????????? | | ???# # # """ """??????????????????? | +----------------------------------------------------+ Best States ------------- Heat Dissipation 34 Energy Generation 14 Energy Capacity 250 Matter Stores 300 Matter Capacity 300 Sight Range 16 Terrain Scan Density 10 Armor Coverage 600 Evasion (%) 50 Recoil Reduction 3 Item Schematics ----------------- None Robot Schematics ------------------ None Fabricated ------------ K-01 Serf | x1 | -7/Factory | Preloaded Alien Tech Used ----------------- None Achievements -------------- None Challenges ------------ None Game ------ Seed ThiefCannonMediator Manual? 0 Play Time 00:24:18 Cumulative 36.4 hours Start 2024.08.02 @ 19:26:44 End 2024.08.02 @ 19:56:52 Sessions 3 Manual Loads 0 Difficulty Rogue Special Mode None Game No. 40 Rogue 40 Adventurer 0 Explorer 0 Win Type - Total 1 Types 1/0/0/0/0/0/0/0/0 Lore% 15 Gallery% 30 Achievement% 27 Wizard Run 0 Options --------- Layout 0 ASCII 0 Keyboard 1 Movement Arrows Keybinds 0 Fullscreen 1 Font 18/SmallcapsGlow Map View 76x50 Zoom Use 0% Tactical HUD 1 Map Filters NONE Filters NONE Steam 1 RUN: b7ff8343-cebd-423a-9762-424bd609acf5